fUSD/lending_fUSD_20240524
["ID","MTS","AMOUNT","RATE_DAILY","PERIOD"]
[327888648,1716580269898,-2300.449256,0.0003315,7]
[327888649,1716580269908,-520.05,0.0003315,5]
[327888650,1716580269917,-232.98,0.0003315,5]
[327888651,1716580269927,-151.0,0.0003315,7]
[327888652,1716580269936,-266.795098,0.0003315,7]
[327888653,1716580269945,-4616.88,0.0003315,5]
[327888654,1716580269954,-266.795098,0.0003315,7]
[327888655,1716580269964,-644.96,0.0003315,5]
[327888656,1716580269973,-151.0,0.0003315,7]
[327888657,1716580269983,-500.0,0.0003315,5]
[327888658,1716580269992,-500.0,0.0003315,5]
[327888659,1716580270001,-151.0,0.0003315,7]
[327888660,1716580270011,-913.32,0.0003315,5]
[327888661,1716580270021,-439.68,0.0003315,5]
[327888662,1716580270030,-500.0,0.0003315,5]
[327888663,1716580270039,-151.0,0.0003315,7]
[327888664,1716580270049,-151.0,0.0003315,7]
[327888665,1716580270058,-187.3273246,0.0003315,5]
[327888666,1716580270068,-263.681164,0.0003315,7]
[327888667,1716580270079,-641.38,0.0003315,5]
[327888668,1716580270089,-263.681164,0.0003315,7]
[327888669,1716580270098,-500.0,0.0003315,5]
[327888670,1716580270107,-795.66,0.0003315,5]
[327888671,1716580270116,-329.73,0.00033151,120]
[327888672,1716580270126,-743.95,0.000332,2]
[327888673,1716580270135,-464.53,0.000332,2]
[327888674,1716580270144,-6103.1360419,0.00033218,5]
[327888675,1716580270153,-216.6,0.00033396,2]
[327888676,1716580270163,-464.54,0.000334,2]
[327888677,1716580270172,-743.96,0.000334,2]
[327888678,1716580270182,-250.0,0.00033424,5]
[327888679,1716580270192,-151.0,0.00033424,7]
[327888680,1716580270202,-652.73,0.00033424,5]
[327888681,1716580270211,-213.54,0.00033424,5]
[327888682,1716580270221,-500.0,0.00033424,5]
[327888683,1716580270230,-500.0,0.00033424,5]
[327888684,1716580270240,-2498.14,0.00033424,5]
[327888685,1716580270249,-500.0,0.00033424,5]
[327888686,1716580270259,-500.0,0.00033424,5]
[327888687,1716580270267,-500.0,0.00033424,2]
[327888688,1716580270277,-500.0,0.00033424,2]
[327888689,1716580270287,-500.0,0.00033424,2]
[327888690,1716580270295,-500.0,0.00033424,2]
[327888691,1716580270305,-500.0,0.00033424,2]
[327888692,1716580270314,-500.0,0.00033424,2]
[327888693,1716580270324,-500.0,0.00033424,2]
[327888694,1716580270334,-500.0,0.00033424,5]
[327888695,1716580270344,-500.0,0.00033424,2]
[327888696,1716580270354,-642.71,0.00033424,5]
[327888697,1716580270363,-500.0,0.00033424,5]
[327888698,1716580270373,-889.21,0.00033424,5]
[327888699,1716580270383,-500.0,0.00033424,5]
[327888700,1716580270393,-500.0,0.00033424,5]
[327888701,1716580270403,-500.0,0.00033424,5]
[327888702,1716580270412,-1339.48,0.00033424,5]
[327888703,1716580270422,-500.0,0.00033424,5]
[327888704,1716580270431,-500.0,0.00033424,5]
[327888705,1716580270441,-589.12,0.00033424,5]
[327888706,1716580270450,-280.27,0.00033424,5]
[327888707,1716580270460,-1681.42,0.00033424,5]
[327888708,1716580270470,-500.0,0.00033424,5]
[327888709,1716580270479,-500.0,0.00033424,5]
[327888710,1716580270489,-500.0,0.00033424,5]
[327888711,1716580270499,-363.56,0.00033424,5]
[327888712,1716580270508,-500.0,0.00033424,5]
[327888713,1716580270519,-500.0,0.00033424,5]
[327888714,1716580270528,-500.0,0.00033424,5]
[327888715,1716580270538,-3985.81,0.00033424,5]
[327888716,1716580270548,-500.0,0.00033424,5]
[327888717,1716580270558,-957.13,0.00033424,5]
[327888718,1716580270568,-500.0,0.00033424,5]
[327888719,1716580270583,-500.0,0.00033424,5]
[327888720,1716580270593,-500.0,0.00033424,5]
[327888721,1716580270602,-500.0,0.00033424,5]
[327888722,1716580270613,-500.0,0.00033424,5]
[327888723,1716580270623,-500.0,0.00033424,5]
[327888724,1716580270633,-500.0,0.00033424,5]
[327888725,1716580270644,-550.59,0.00033424,5]
[327888726,1716580270654,-500.0,0.00033424,5]
[327888727,1716580270665,-500.0,0.00033424,5]
[327888728,1716580270675,-500.0,0.00033424,5]
[327888729,1716580270684,-500.0,0.00033424,5]
[327888730,1716580270695,-199.72,0.00033424,5]
[327888731,1716580270704,-500.0,0.00033424,5]
[327888732,1716580270714,-2690.54,0.00033424,5]
[327888733,1716580270723,-981.3,0.00033424,5]
[327888734,1716580270733,-765.74,0.00033424,5]
[327888735,1716580270743,-183.08,0.00033424,5]
[327888736,1716580270752,-500.0,0.00033424,5]
[327888737,1716580270762,-1006.75,0.00033424,5]
[327888738,1716580270771,-1344.33,0.00033424,5]
[327888739,1716580270781,-1178.9,0.00033424,5]
[327888740,1716580270790,-287.62,0.00033424,5]
[327888741,1716580270800,-680.33,0.00033424,5]
[327888742,1716580270810,-500.0,0.00033424,5]
[327888743,1716580270824,-500.0,0.00033424,5]
[327888744,1716580270833,-1834.86,0.00033424,5]
[327888745,1716580270842,-520.05,0.00033424,5]
[327888746,1716580270851,-4616.88,0.00033424,5]
[327888747,1716580270860,-500.0,0.00033424,5]
[327888748,1716580270869,-500.0,0.00033424,5]
[327888749,1716580270879,-913.32,0.00033424,5]
[327888750,1716580270889,-500.0,0.00033424,5]
[327888751,1716580270901,-500.0,0.00033424,5]
[327888752,1716580270910,-795.66,0.00033424,5]
[327888753,1716580270919,-1000.0,0.00033443,2]
[327888754,1716580270929,-218.19,0.000335,2]
[327888755,1716580270939,-218.19,0.000335,2]
[327888756,1716580270948,-218.19,0.000335,2]
[327888757,1716580270957,-218.19,0.000335,2]
[327888758,1716580270966,-218.19,0.000335,2]
[327888759,1716580270976,-218.19,0.000335,2]
[327888760,1716580270985,-218.19,0.000335,2]
[327888761,1716580270995,-218.19,0.000335,2]
[327888762,1716580271005,-218.19,0.000335,2]
[327888763,1716580271014,-218.19,0.000335,2]
[327888764,1716580271023,-218.19,0.000335,2]
[327888765,1716580271033,-218.19,0.000335,2]
[327888766,1716580271042,-218.19,0.000335,2]
[327888767,1716580271052,-218.19,0.000335,2]
[327888768,1716580271062,-218.19,0.000335,2]
[327888769,1716580271074,-218.19,0.000335,2]
[327888770,1716580271084,-218.19,0.000335,2]
[327888771,1716580271093,-218.19,0.000335,2]
[327888772,1716580271103,-218.19,0.000335,2]
[327888773,1716580271112,-218.19,0.000335,2]
[327888774,1716580271122,-153.55,0.000335,2]
[327888775,1716580271132,-153.55,0.000335,2]
[327888776,1716580271141,-153.55,0.000335,2]
[327888777,1716580271151,-153.55,0.000335,2]
[327888778,1716580271161,-153.55,0.000335,2]
[327888779,1716580271171,-153.55,0.000335,2]
[327888780,1716580271180,-153.55,0.000335,2]
[327888781,1716580271190,-153.55,0.000335,2]
[327888782,1716580271200,-153.55,0.000335,2]
[327888783,1716580271209,-153.55,0.000335,2]
[327888784,1716580271219,-153.55,0.000335,2]
[327888785,1716580271229,-153.55,0.000335,2]
[327888786,1716580271238,-153.55,0.000335,2]
[327888787,1716580271248,-153.55,0.000335,2]
[327888788,1716580271257,-153.55,0.000335,2]
[327888789,1716580271267,-153.55,0.000335,2]
[327888790,1716580271276,-500.0,0.00033582,10]
[327888791,1716580271285,-1008.4,0.000336,2]
[327888792,1716580271294,-605.72,0.000336,2]
[327888793,1716580271303,-16521.19162343,0.00033647,20]
[327888794,1716580271312,-8069.01514025,0.00033647,30]
[327888795,1716580271322,-158.0,0.00033647,120]
[327888796,1716580271331,-2000.0,0.00033647,30]
[327888797,1716580271339,-2000.699999,0.00033647,30]
[327888798,1716580271348,-20339.9629608,0.00033647,120]
[327888799,1716580271357,-9369.03026646,0.00033647,30]
[327888800,1716580271366,-221.8,0.00033647,90]
[327888801,1716580271375,-2000.0,0.00033647,30]
[327888802,1716580271385,-2000.0,0.00033647,30]
[327888803,1716580271394,-19523.17996582,0.00033647,2]
[327888804,1716580271403,-295.76708068,0.00033647,120]
[327888805,1716580271412,-395.78620426,0.00033647,120]
[327888806,1716580271421,-2173.55842359,0.00033647,120]
[327888807,1716580271430,-2000.0,0.00033647,120]
[327888808,1716580271439,-212.22701202,0.00033647,5]
[327888809,1716580271448,-206.23629826,0.00033647,5]
[327888810,1716580271457,-1642.0,0.00033647,4]
[327888811,1716580271467,-155.633842,0.00033647,30]
[327888812,1716580271476,-150.0,0.00033648,120]
[327888813,1716580271485,-699.0,0.00033663,2]
[327888814,1716580271494,-552.0,0.00033663,2]
[327888815,1716580271503,-605.0,0.00033668,3]
[327888816,1716580271512,-250.0,0.00033698,5]
[327888817,1716580271521,-652.73,0.00033698,5]
[327888818,1716580271530,-500.0,0.00033698,5]
[327888819,1716580271539,-500.0,0.00033698,5]
[327888820,1716580271548,-2498.14,0.00033698,5]
[327888821,1716580271557,-500.0,0.00033698,5]
[327888822,1716580271566,-525.96,0.00033698,5]
[327888823,1716580271577,-500.0,0.00033698,5]
[327888824,1716580271586,-642.71,0.00033698,5]
[327888825,1716580271595,-500.0,0.00033698,5]
[327888826,1716580271604,-889.21,0.00033698,5]
[327888827,1716580271613,-500.0,0.00033698,5]
[327888828,1716580271623,-500.0,0.00033698,5]
[327888829,1716580271632,-500.0,0.00033698,5]
[327888830,1716580271642,-1339.48,0.00033698,5]
[327888831,1716580271651,-500.0,0.00033698,5]
[327888832,1716580271660,-500.0,0.00033698,5]
[327888833,1716580271669,-589.12,0.00033698,5]
[327888834,1716580271679,-1681.42,0.00033698,5]
[327888835,1716580271688,-500.0,0.00033698,5]
[327888836,1716580271697,-328.09827008,0.00033698,5]
[327888837,1716580271706,-500.0,0.00033698,5]
[327888838,1716580271715,-500.0,0.00033698,5]
[327888839,1716580271724,-500.0,0.00033698,5]
[327888840,1716580271733,-469.87379491,0.00033698,5]
[327888841,1716580271743,-3985.81,0.00033698,5]
[327888842,1716580271752,-500.0,0.00033698,5]
[327888843,1716580271761,-957.13,0.00033698,5]
[327888844,1716580271771,-247.47335286,0.00033698,5]
[327888845,1716580271890,-500.0,0.00033698,5]
[327888846,1716580271901,-500.0,0.00033698,5]
[327888847,1716580271910,-500.0,0.00033698,5]
[327888848,1716580271920,-500.0,0.00033698,5]
[327888849,1716580271929,-500.0,0.00033698,5]
[327888850,1716580271940,-500.0,0.00033698,5]
[327888851,1716580271951,-550.59,0.00033698,5]
[327888852,1716580271962,-500.0,0.00033698,5]
[327888853,1716580271973,-500.0,0.00033698,5]
[327888854,1716580271983,-500.0,0.00033698,5]
[327888855,1716580271992,-500.0,0.00033698,5]
[327888856,1716580272001,-500.0,0.00033698,5]
[327888857,1716580272010,-2690.54,0.00033698,5]
[327888858,1716580272019,-981.3,0.00033698,5]
[327888859,1716580272028,-765.74,0.00033698,5]
[327888860,1716580272038,-500.0,0.00033698,5]
[327888861,1716580272048,-1006.75,0.00033698,5]
[327888862,1716580272057,-1344.33,0.00033698,5]
[327888863,1716580272067,-1178.9,0.00033698,5]
[327888864,1716580272078,-680.33,0.00033698,5]
[327888865,1716580272088,-500.0,0.00033698,5]
[327888866,1716580272097,-500.0,0.00033698,5]
[327888867,1716580272107,-1834.86,0.00033698,5]
[327888868,1716580272117,-520.05,0.00033698,5]
[327888869,1716580272126,-4616.88,0.00033698,5]
[327888870,1716580272136,-500.0,0.00033698,5]
[327888871,1716580272145,-500.0,0.00033698,5]
[327888872,1716580272154,-913.32,0.00033698,5]
[327888873,1716580272163,-500.0,0.00033698,5]
[327888874,1716580272172,-500.0,0.00033698,5]
[327888875,1716580272182,-428.08480055,0.00033793,6]
[327888876,1716580272191,-1419.033188,0.000338,2]
[327888877,1716580272200,-1773.791486,0.000338,2]
[327888878,1716580272209,-6103.1360419,0.00033945,6]
[327888879,1716580272219,-250.0,0.00033972,5]
[327888880,1716580272227,-652.73,0.00033972,5]
[327888881,1716580272237,-500.0,0.00033972,5]
[327888882,1716580272246,-2498.14,0.00033972,5]
[327888883,1716580272255,-500.0,0.00033972,5]
[327888884,1716580272264,-500.0,0.00033972,5]
[327888885,1716580272273,-586.47,0.00033972,5]
[327888886,1716580272282,-642.71,0.00033972,5]
[327888887,1716580272291,-535.31988879,0.00033972,5]
[327888888,1716580272300,-889.21,0.00033972,5]
[327888889,1716580272309,-500.0,0.00033972,5]
[327888890,1716580272318,-500.0,0.00033972,5]
[327888891,1716580272329,-293.18,0.00033972,5]
[327888892,1716580272338,-1339.48,0.00033972,5]
[327888893,1716580272347,-500.0,0.00033972,5]
[327888894,1716580272357,-500.0,0.00033972,5]
[327888895,1716580272368,-589.12,0.00033972,5]
[327888896,1716580272379,-1681.42,0.00033972,5]
[327888897,1716580272388,-500.0,0.00033972,5]
[327888898,1716580272397,-500.0,0.00033972,5]
[327888899,1716580272407,-500.0,0.00033972,5]
[327888900,1716580272417,-500.0,0.00033972,5]
[327888901,1716580272427,-3985.81,0.00033972,5]
[327888902,1716580272436,-500.0,0.00033972,5]
[327888903,1716580272446,-957.13,0.00033972,5]
[327888904,1716580272455,-500.0,0.00033972,5]
[327888905,1716580272464,-500.0,0.00033972,5]
[327888906,1716580272473,-500.0,0.00033972,5]
[327888907,1716580272483,-500.0,0.00033972,5]
[327888908,1716580272493,-500.0,0.00033972,5]
[327888909,1716580272503,-500.0,0.00033972,5]
[327888910,1716580272512,-550.59,0.00033972,5]
[327888911,1716580272521,-500.0,0.00033972,5]
[327888912,1716580272531,-500.0,0.00033972,5]
[327888913,1716580272540,-500.0,0.00033972,5]
[327888914,1716580272548,-500.0,0.00033972,5]
[327888915,1716580272558,-500.0,0.00033972,5]
[327888916,1716580272567,-2690.54,0.00033972,5]
[327888917,1716580272577,-981.3,0.00033972,5]
[327888918,1716580272586,-765.74,0.00033972,5]
[327888919,1716580272595,-500.0,0.00033972,5]
[327888920,1716580272604,-1006.75,0.00033972,5]
[327888921,1716580272614,-1344.33,0.00033972,5]
[327888922,1716580272624,-1178.9,0.00033972,5]
[327888923,1716580272633,-680.33,0.00033972,5]
[327888924,1716580272642,-500.0,0.00033972,5]
[327888925,1716580272652,-500.0,0.00033972,5]
[327888926,1716580272662,-1834.86,0.00033972,5]
[327888927,1716580272671,-520.05,0.00033972,5]
[327888928,1716580272681,-4616.88,0.00033972,5]
[327888929,1716580272690,-500.0,0.00033972,5]
[327888930,1716580272699,-500.0,0.00033972,5]
[327888931,1716580272708,-913.32,0.00033972,5]
[327888932,1716580272717,-500.0,0.00033972,5]
[327888933,1716580272727,-500.0,0.00033972,5]
[327888934,1716580272736,-161.0350808,0.00033977,2]
[327888935,1716580272746,-4887.4415029,0.00033977,2]
[327888936,1716580272755,-205.141381,0.00033977,2]
[327888937,1716580272764,-500.0,0.00034,30]
[327888938,1716580272773,-2000.0,0.00034,6]
[327888939,1716580272783,-5000.0,0.00034,30]
[327888940,1716580272792,-5000.0,0.00034,120]
[327888941,1716580272802,-17006.89997365,0.00034,10]
[327888942,1716580272816,-218.19,0.00034,2]
[327888943,1716580272826,-218.19,0.00034,2]
[327888944,1716580272835,-218.19,0.00034,2]
[327888945,1716580272845,-218.19,0.00034,2]
[327888946,1716580272854,-218.19,0.00034,2]
[327888947,1716580272864,-218.19,0.00034,2]
[327888948,1716580272874,-218.19,0.00034,2]
[327888949,1716580272891,-218.19,0.00034,2]
[327888950,1716580272902,-218.19,0.00034,2]
[327888951,1716580272911,-218.19,0.00034,2]
[327888952,1716580272920,-218.19,0.00034,2]
[327888953,1716580272931,-218.19,0.00034,2]
[327888954,1716580272943,-218.19,0.00034,2]
[327888955,1716580272952,-218.19,0.00034,2]
[327888956,1716580272962,-218.19,0.00034,2]
[327888957,1716580272971,-218.19,0.00034,2]
[327888958,1716580272981,-218.19,0.00034,2]
[327888959,1716580272991,-218.19,0.00034,2]
[327888960,1716580272999,-218.19,0.00034,2]
[327888961,1716580273009,-218.19,0.00034,2]
[327888962,1716580273018,-150.0,0.00034,30]
[327888963,1716580273028,-153.55,0.00034,2]
[327888964,1716580273044,-153.55,0.00034,2]
[327888965,1716580273067,-153.55,0.00034,2]
[327888966,1716580273077,-153.55,0.00034,2]
[327888967,1716580273086,-153.55,0.00034,2]
[327888968,1716580273096,-153.55,0.00034,2]
[327888969,1716580273105,-153.55,0.00034,2]
[327888970,1716580273114,-153.55,0.00034,2]
[327888971,1716580273125,-153.55,0.00034,2]
[327888972,1716580273136,-153.55,0.00034,2]
[327888973,1716580273145,-153.55,0.00034,2]
[327888974,1716580273155,-153.55,0.00034,2]
[327888975,1716580273165,-153.55,0.00034,2]
[327888976,1716580273174,-153.55,0.00034,2]
[327888977,1716580273184,-153.55,0.00034,2]
[327888978,1716580273194,-153.55,0.00034,2]
[327888979,1716580273204,-699.0,0.0003401,2]
[327888980,1716580273213,-552.0,0.0003401,2]
[327888981,1716580273223,-152.0,0.00034095,4]
[327888982,1716580273233,-1000.0,0.0003411,120]
[327888983,1716580273243,-646.5650757,0.000342,2]
[327888984,1716580273255,-250.0,0.00034246,5]
[327888985,1716580273263,-652.73,0.00034246,5]
[327888986,1716580273272,-171.62090095,0.00034246,5]
[327888987,1716580273282,-2498.14,0.00034246,5]
[327888988,1716580273292,-512.56,0.00034246,5]
[327888989,1716580273301,-500.0,0.00034246,5]
[327888990,1716580273310,-642.71,0.00034246,5]
[327888991,1716580273319,-889.21,0.00034246,5]
[327888992,1716580273330,-500.0,0.00034246,5]
[327888993,1716580273340,-500.0,0.00034246,5]
[327888994,1716580273349,-1339.48,0.00034246,5]
[327888995,1716580273358,-500.0,0.00034246,5]
[327888996,1716580273367,-500.0,0.00034246,5]
[327888997,1716580273377,-589.12,0.00034246,5]
[327888998,1716580273387,-1681.42,0.00034246,5]
[327888999,1716580273397,-500.0,0.00034246,5]
[327889000,1716580273407,-500.0,0.00034246,5]
[327889001,1716580273417,-500.0,0.00034246,5]
[327889002,1716580273426,-500.0,0.00034246,5]
[327889003,1716580273435,-3985.81,0.00034246,5]
[327889004,1716580273445,-500.0,0.00034246,5]
[327889005,1716580273454,-957.13,0.00034246,5]
[327889006,1716580273463,-500.0,0.00034246,5]
[327889007,1716580273474,-500.0,0.00034246,5]
[327889008,1716580273483,-500.0,0.00034246,5]
[327889009,1716580273494,-500.0,0.00034246,5]
[327889010,1716580273504,-500.0,0.00034246,5]
[327889011,1716580273514,-500.0,0.00034246,5]
[327889012,1716580273523,-550.59,0.00034246,5]
[327889013,1716580273532,-500.0,0.00034246,5]
[327889014,1716580273541,-500.0,0.00034246,5]
[327889015,1716580273550,-500.0,0.00034246,5]
[327889016,1716580273559,-500.0,0.00034246,5]
[327889017,1716580273569,-500.0,0.00034246,5]
[327889018,1716580273579,-2690.54,0.00034246,5]
[327889019,1716580273589,-981.3,0.00034246,5]
[327889020,1716580273598,-765.74,0.00034246,5]
[327889021,1716580273607,-500.0,0.00034246,5]
[327889022,1716580273616,-1006.75,0.00034246,5]
[327889023,1716580273625,-1344.33,0.00034246,5]
[327889024,1716580273634,-1178.9,0.00034246,5]
[327889025,1716580273643,-680.33,0.00034246,5]
[327889026,1716580273652,-500.0,0.00034246,5]
[327889027,1716580273661,-380.35,0.00034246,5]
[327889028,1716580273670,-1834.86,0.00034246,5]
[327889029,1716580273679,-520.05,0.00034246,5]
[327889030,1716580273688,-4616.88,0.00034246,5]
[327889031,1716580273697,-500.0,0.00034246,5]
[327889032,1716580273706,-471.86,0.00034246,5]
[327889033,1716580273715,-913.32,0.00034246,5]
[327889034,1716580273724,-500.0,0.00034246,5]
[327889035,1716580273734,-500.0,0.00034246,5]
[327889036,1716580273743,-743.96,0.000343,2]
[327889037,1716580273752,-788.0,0.000343,23]
[327889038,1716580273762,-157.82414398,0.00034324,7]
[327889039,1716580273773,-699.0,0.00034357,2]
[327889040,1716580273783,-552.0,0.00034357,2]
[327889041,1716580273792,-464.53,0.000344,2]
[327889042,1716580273803,-1000.0,0.000344,30]
[327889043,1716580273818,-218.19,0.000344,2]
[327889044,1716580273828,-218.19,0.000344,2]
[327889045,1716580273837,-218.19,0.000344,2]
[327889046,1716580273846,-218.19,0.000344,2]
[327889047,1716580273858,-218.19,0.000344,2]
[327889048,1716580273867,-218.19,0.000344,2]
[327889049,1716580273877,-218.19,0.000344,2]
[327889050,1716580273886,-218.19,0.000344,2]
[327889051,1716580273898,-218.19,0.000344,2]
[327889052,1716580273908,-218.19,0.000344,2]
[327889053,1716580273919,-218.19,0.000344,2]
[327889054,1716580273928,-218.19,0.000344,2]
[327889055,1716580273939,-218.19,0.000344,2]
[327889056,1716580273950,-218.19,0.000344,2]
[327889057,1716580273961,-218.19,0.000344,2]
[327889058,1716580273971,-218.19,0.000344,2]
[327889059,1716580273980,-218.19,0.000344,2]
[327889060,1716580273989,-218.19,0.000344,2]
[327889061,1716580273998,-218.19,0.000344,2]
[327889062,1716580274007,-218.19,0.000344,2]
[327889063,1716580274016,-153.55,0.000344,2]
[327889064,1716580274025,-153.55,0.000344,2]
[327889065,1716580274034,-153.55,0.000344,2]
[327889066,1716580274043,-153.55,0.000344,2]
[327889067,1716580274052,-153.55,0.000344,2]
[327889068,1716580274062,-153.55,0.000344,2]
[327889069,1716580274072,-153.55,0.000344,2]
[327889070,1716580274082,-153.55,0.000344,2]
[327889071,1716580274091,-153.55,0.000344,2]
[327889072,1716580274100,-153.55,0.000344,2]
[327889073,1716580274111,-153.55,0.000344,2]
[327889074,1716580274121,-153.55,0.000344,2]
[327889075,1716580274131,-153.55,0.000344,2]
[327889076,1716580274140,-153.55,0.000344,2]
[327889077,1716580274150,-153.55,0.000344,2]
[327889078,1716580274160,-153.55,0.000344,2]
[327889079,1716580274170,-745.44,0.00034462,30]
[327889080,1716580274180,-745.44,0.00034462,30]
[327889081,1716580274190,-745.44,0.00034462,30]
[327889082,1716580274305,-745.44,0.00034462,30]
[327889083,1716580274314,-1000.31262215,0.000345,2]
[327889084,1716580274325,-250.0,0.0003452,5]
[327889085,1716580274334,-652.73,0.0003452,5]
[327889086,1716580274344,-2498.14,0.0003452,5]
[327889087,1716580274353,-500.0,0.0003452,5]
[327889088,1716580274363,-642.71,0.0003452,5]
[327889089,1716580274372,-889.21,0.0003452,5]
[327889090,1716580274382,-293.67884067,0.0003452,5]
[327889091,1716580274391,-500.0,0.0003452,5]
[327889092,1716580274401,-1339.48,0.0003452,5]
[327889093,1716580274410,-500.0,0.0003452,5]
[327889094,1716580274419,-500.0,0.0003452,5]
[327889095,1716580274428,-589.12,0.0003452,5]
[327889096,1716580274438,-1681.42,0.0003452,5]
[327889097,1716580274447,-500.0,0.0003452,5]
[327889098,1716580274456,-500.0,0.0003452,5]
[327889099,1716580274465,-347.73,0.0003452,5]
[327889100,1716580274474,-500.0,0.0003452,5]
[327889101,1716580274484,-3985.81,0.0003452,5]
[327889102,1716580274493,-500.0,0.0003452,5]
[327889103,1716580274503,-957.13,0.0003452,5]
[327889104,1716580274512,-500.0,0.0003452,5]
[327889105,1716580274522,-500.0,0.0003452,5]
[327889106,1716580274531,-500.0,0.0003452,5]
[327889107,1716580274540,-500.0,0.0003452,5]
[327889108,1716580274550,-500.0,0.0003452,5]
[327889109,1716580274559,-500.0,0.0003452,5]
[327889110,1716580274568,-550.59,0.0003452,5]
[327889111,1716580274580,-500.0,0.0003452,5]
[327889112,1716580274589,-500.0,0.0003452,5]
[327889113,1716580274598,-500.0,0.0003452,5]
[327889114,1716580274608,-500.0,0.0003452,5]
[327889115,1716580274617,-505.59634563,0.0003452,5]
[327889116,1716580274626,-2690.54,0.0003452,5]
[327889117,1716580274636,-981.3,0.0003452,5]
[327889118,1716580274645,-765.74,0.0003452,5]
[327889119,1716580274655,-500.0,0.0003452,5]
[327889120,1716580274664,-1006.75,0.0003452,5]
[327889121,1716580274673,-1344.33,0.0003452,5]
[327889122,1716580274682,-1178.9,0.0003452,5]
[327889123,1716580274691,-680.33,0.0003452,5]
[327889124,1716580274700,-500.0,0.0003452,5]
[327889125,1716580274710,-1834.86,0.0003452,5]
[327889126,1716580274719,-520.05,0.0003452,5]
[327889127,1716580274728,-4616.88,0.0003452,5]
[327889128,1716580274737,-195.94,0.0003452,5]
[327889129,1716580274746,-913.32,0.0003452,5]
[327889130,1716580274755,-500.0,0.0003452,5]
[327889131,1716580274764,-500.0,0.0003452,5]
[327889132,1716580274774,-865.45,0.00034548,2]
[327889133,1716580274783,-150.0,0.00034548,10]
[327889134,1716580274792,-425.0,0.00034559,120]
[327889135,1716580274804,-216.0,0.0003465,2]
[327889136,1716580274816,-6103.1360419,0.00034673,7]
[327889137,1716580274828,-500.0,0.00034678,10]
[327889138,1716580274837,-699.0,0.00034704,2]
[327889139,1716580274846,-596.2501809,0.00034704,2]
[327889140,1716580274857,-946.21522468,0.00034704,2]
[327889141,1716580274866,-552.0,0.00034704,2]
[327889142,1716580274875,-433.43229879,0.00034704,2]
[327889143,1716580274885,-745.44,0.00034735,30]
[327889144,1716580274897,-745.44,0.00034735,30]
[327889145,1716580274906,-250.0,0.00034794,5]
[327889146,1716580274915,-652.73,0.00034794,5]
[327889147,1716580274925,-2498.14,0.00034794,5]